{"text_format":"3","workbook":"xlsx","n_sheets":3,"sheets":["Priradené úlohy","Zobrazenie mesiaca","Zobrazenie týždňa"],"not_rendered":{"images":4,"defined_names":16},"read":"whole","date_system":"1900"}

{"sheet":"Priradené úlohy","index":0,"n_rows":15,"n_cols":3,"rows_kept":15}
[null,"ZOBRAZENIE MESIACA","ZOBRAZENIE TÝŽDŇA"]
[null," PRIRADENÉ ÚLOHY"]
[null,"POPIS","TERMÍN DOKONČENIA"]
[null,"Úloha č. 1",{"$f":"TODAY()","v":"2016-11-29"}]
[null,"Úloha č. 2",{"$f":"TODAY()+15","v":"2016-12-14"}]
[null,"Úloha č. 3",{"$f":"TODAY()+30","v":"2016-12-29"}]
[null,"Úloha č. 4",{"$f":"TODAY()+45","v":"2017-01-13"}]
[null,"Úloha č. 5",{"$f":"TODAY()+60","v":"2017-01-28"}]
[null,"Úloha č. 6",{"$f":"TODAY()+75","v":"2017-02-12"}]
[null,"Úloha č. 7",{"$f":"TODAY()+90","v":"2017-02-27"}]
[null,"Úloha č. 8",{"$f":"TODAY()+105","v":"2017-03-14"}]
[null,"Úloha č. 9",{"$f":"TODAY()+115","v":"2017-03-24"}]
[null,"Úloha č. 10",{"$f":"TODAY()+130","v":"2017-04-08"}]
[null,"Úloha č. 11",{"$f":"TODAY()+145","v":"2017-04-23"}]
[null,"Úloha č. 12",{"$f":"TODAY()+160","v":"2017-05-08"}]

{"sheet":"Zobrazenie mesiaca","index":1,"n_rows":17,"n_cols":8,"rows_kept":17,"merged":[[3,1,3,7]]}
[null,"PRIRADENÉ ÚLOHY","ZOBRAZENIE TÝŽDŇA"]
[null,"Vyberte mesiac:","Zadajte rok:"]
[null,"September",{"$f":"YEAR(TODAY())","v":2016}]
[null," ZOBRAZENIE MESIACA"]
[null,"PONDELOK","UTOROK","STREDA","ŠTVRTOK","PIATOK","SOBOTA","NEDEĽA"]
[null,{"$f":"IF(WEEKDAY(DATEVALUE(\"1\"&MesMesiac&MesRok)-1)=COLUMN(A$2),1,IF(LEN(A6)>0,A6+1,\"\"))","v":""},"","",1,2,3,4]
[null,{"$f":"IF(LEN(B6)=0,\"\",IF(COUNTIF(Priradené_úlohy[TERMÍN DOKONČENIA],DATE(MesRok,MesČísloMesiaca,B6))>0,\"Termín dokončenia úlohy!\",\"\"))","v":""},{"$f":"IF(LEN(C6)=0,\"\",IF(COUNTIF(Priradené_úlohy[TERMÍN DOKONČENIA],DATE(MesRok,MesČísloMesiaca,C6))>0,\"Termín dokončenia úlohy!\",\"\"))","v":""},{"$f":"IF(LEN(D6)=0,\"\",IF(COUNTIF(Priradené_úlohy[TERMÍN DOKONČENIA],DATE(MesRok,MesČísloMesiaca,D6))>0,\"Termín dokončenia úlohy!\",\"\"))","v":""},{"$f":"IF(LEN(E6)=0,\"\",IF(COUNTIF(Priradené_úlohy[TERMÍN DOKONČENIA],DATE(MesRok,MesČísloMesiaca,E6))>0,\"Termín dokončenia úlohy!\",\"\"))","v":""},{"$f":"IF(LEN(F6)=0,\"\",IF(COUNTIF(Priradené_úlohy[TERMÍN DOKONČENIA],DATE(MesRok,MesČísloMesiaca,F6))>0,\"Termín dokončenia úlohy!\",\"\"))","v":""},{"$f":"IF(LEN(G6)=0,\"\",IF(COUNTIF(Priradené_úlohy[TERMÍN DOKONČENIA],DATE(MesRok,MesČísloMesiaca,G6))>0,\"Termín dokončenia úlohy!\",\"\"))","v":""},{"$f":"IF(LEN(H6)=0,\"\",IF(COUNTIF(Priradené_úlohy[TERMÍN DOKONČENIA],DATE(MesRok,MesČísloMesiaca,H6))>0,\"Termín dokončenia úlohy!\",\"\"))","v":""}]
[null,{"$f":"IF(LEN(H6)>0,IF(H6=DAY(DATE(MesRok,MesČísloMesiaca+1,0)),\"\",H6+1),\"\")","v":5},{"$f":"IF(LEN(B8)>0,IF(B8=DAY(DATE(MesRok,MesČísloMesiaca+1,0)),\"\",B8+1),\"\")","v":6},7,8,9,10,11]
[null,{"$f":"IF(LEN(B8)=0,\"\",IF(COUNTIF(Priradené_úlohy[TERMÍN DOKONČENIA],DATE(MesRok,MesČísloMesiaca,B8))>0,\"Termín dokončenia úlohy!\",\"\"))","v":""},{"$f":"IF(LEN(C8)=0,\"\",IF(COUNTIF(Priradené_úlohy[TERMÍN DOKONČENIA],DATE(MesRok,MesČísloMesiaca,C8))>0,\"Termín dokončenia úlohy!\",\"\"))","v":""},{"$f":"IF(LEN(D8)=0,\"\",IF(COUNTIF(Priradené_úlohy[TERMÍN DOKONČENIA],DATE(MesRok,MesČísloMesiaca,D8))>0,\"Termín dokončenia úlohy!\",\"\"))","v":""},{"$f":"IF(LEN(E8)=0,\"\",IF(COUNTIF(Priradené_úlohy[TERMÍN DOKONČENIA],DATE(MesRok,MesČísloMesiaca,E8))>0,\"Termín dokončenia úlohy!\",\"\"))","v":""},{"$f":"IF(LEN(F8)=0,\"\",IF(COUNTIF(Priradené_úlohy[TERMÍN DOKONČENIA],DATE(MesRok,MesČísloMesiaca,F8))>0,\"Termín dokončenia úlohy!\",\"\"))","v":""},{"$f":"IF(LEN(G8)=0,\"\",IF(COUNTIF(Priradené_úlohy[TERMÍN DOKONČENIA],DATE(MesRok,MesČísloMesiaca,G8))>0,\"Termín dokončenia úlohy!\",\"\"))","v":""},{"$f":"IF(LEN(H8)=0,\"\",IF(COUNTIF(Priradené_úlohy[TERMÍN DOKONČENIA],DATE(MesRok,MesČísloMesiaca,H8))>0,\"Termín dokončenia úlohy!\",\"\"))","v":""}]
[null,{"$f":"IF(LEN(H8)>0,IF(H8=DAY(DATE(MesRok,MesČísloMesiaca+1,0)),\"\",H8+1),\"\")","v":12},{"$f":"IF(LEN(B10)>0,IF(B10=DAY(DATE(MesRok,MesČísloMesiaca+1,0)),\"\",B10+1),\"\")","v":13},14,15,16,17,18]
[null,{"$f":"IF(LEN(B10)=0,\"\",IF(COUNTIF(Priradené_úlohy[TERMÍN DOKONČENIA],DATE(MesRok,MesČísloMesiaca,B10))>0,\"Termín dokončenia úlohy!\",\"\"))","v":""},{"$f":"IF(LEN(C10)=0,\"\",IF(COUNTIF(Priradené_úlohy[TERMÍN DOKONČENIA],DATE(MesRok,MesČísloMesiaca,C10))>0,\"Termín dokončenia úlohy!\",\"\"))","v":""},{"$f":"IF(LEN(D10)=0,\"\",IF(COUNTIF(Priradené_úlohy[TERMÍN DOKONČENIA],DATE(MesRok,MesČísloMesiaca,D10))>0,\"Termín dokončenia úlohy!\",\"\"))","v":""},{"$f":"IF(LEN(E10)=0,\"\",IF(COUNTIF(Priradené_úlohy[TERMÍN DOKONČENIA],DATE(MesRok,MesČísloMesiaca,E10))>0,\"Termín dokončenia úlohy!\",\"\"))","v":""},{"$f":"IF(LEN(F10)=0,\"\",IF(COUNTIF(Priradené_úlohy[TERMÍN DOKONČENIA],DATE(MesRok,MesČísloMesiaca,F10))>0,\"Termín dokončenia úlohy!\",\"\"))","v":""},{"$f":"IF(LEN(G10)=0,\"\",IF(COUNTIF(Priradené_úlohy[TERMÍN DOKONČENIA],DATE(MesRok,MesČísloMesiaca,G10))>0,\"Termín dokončenia úlohy!\",\"\"))","v":""},{"$f":"IF(LEN(H10)=0,\"\",IF(COUNTIF(Priradené_úlohy[TERMÍN DOKONČENIA],DATE(MesRok,MesČísloMesiaca,H10))>0,\"Termín dokončenia úlohy!\",\"\"))","v":""}]
[null,{"$f":"IF(LEN(H10)>0,IF(H10=DAY(DATE(MesRok,MesČísloMesiaca+1,0)),\"\",H10+1),\"\")","v":19},{"$f":"IF(LEN(B12)>0,IF(B12=DAY(DATE(MesRok,MesČísloMesiaca+1,0)),\"\",B12+1),\"\")","v":20},21,22,23,24,25]
[null,{"$f":"IF(LEN(B12)=0,\"\",IF(COUNTIF(Priradené_úlohy[TERMÍN DOKONČENIA],DATE(MesRok,MesČísloMesiaca,B12))>0,\"Termín dokončenia úlohy!\",\"\"))","v":""},{"$f":"IF(LEN(C12)=0,\"\",IF(COUNTIF(Priradené_úlohy[TERMÍN DOKONČENIA],DATE(MesRok,MesČísloMesiaca,C12))>0,\"Termín dokončenia úlohy!\",\"\"))","v":""},{"$f":"IF(LEN(D12)=0,\"\",IF(COUNTIF(Priradené_úlohy[TERMÍN DOKONČENIA],DATE(MesRok,MesČísloMesiaca,D12))>0,\"Termín dokončenia úlohy!\",\"\"))","v":""},{"$f":"IF(LEN(E12)=0,\"\",IF(COUNTIF(Priradené_úlohy[TERMÍN DOKONČENIA],DATE(MesRok,MesČísloMesiaca,E12))>0,\"Termín dokončenia úlohy!\",\"\"))","v":""},{"$f":"IF(LEN(F12)=0,\"\",IF(COUNTIF(Priradené_úlohy[TERMÍN DOKONČENIA],DATE(MesRok,MesČísloMesiaca,F12))>0,\"Termín dokončenia úlohy!\",\"\"))","v":""},{"$f":"IF(LEN(G12)=0,\"\",IF(COUNTIF(Priradené_úlohy[TERMÍN DOKONČENIA],DATE(MesRok,MesČísloMesiaca,G12))>0,\"Termín dokončenia úlohy!\",\"\"))","v":""},{"$f":"IF(LEN(H12)=0,\"\",IF(COUNTIF(Priradené_úlohy[TERMÍN DOKONČENIA],DATE(MesRok,MesČísloMesiaca,H12))>0,\"Termín dokončenia úlohy!\",\"\"))","v":""}]
[null,{"$f":"IF(LEN(H12)>0,IF(H12=DAY(DATE(MesRok,MesČísloMesiaca+1,0)),\"\",H12+1),\"\")","v":26},{"$f":"IF(LEN(B14)>0,IF(B14=DAY(DATE(MesRok,MesČísloMesiaca+1,0)),\"\",B14+1),\"\")","v":27},28,29,30,"",""]
[null,{"$f":"IF(LEN(B14)=0,\"\",IF(COUNTIF(Priradené_úlohy[TERMÍN DOKONČENIA],DATE(MesRok,MesČísloMesiaca,B14))>0,\"Termín dokončenia úlohy!\",\"\"))","v":""},{"$f":"IF(LEN(C14)=0,\"\",IF(COUNTIF(Priradené_úlohy[TERMÍN DOKONČENIA],DATE(MesRok,MesČísloMesiaca,C14))>0,\"Termín dokončenia úlohy!\",\"\"))","v":""},{"$f":"IF(LEN(D14)=0,\"\",IF(COUNTIF(Priradené_úlohy[TERMÍN DOKONČENIA],DATE(MesRok,MesČísloMesiaca,D14))>0,\"Termín dokončenia úlohy!\",\"\"))","v":""},{"$f":"IF(LEN(E14)=0,\"\",IF(COUNTIF(Priradené_úlohy[TERMÍN DOKONČENIA],DATE(MesRok,MesČísloMesiaca,E14))>0,\"Termín dokončenia úlohy!\",\"\"))","v":""},{"$f":"IF(LEN(F14)=0,\"\",IF(COUNTIF(Priradené_úlohy[TERMÍN DOKONČENIA],DATE(MesRok,MesČísloMesiaca,F14))>0,\"Termín dokončenia úlohy!\",\"\"))","v":""},{"$f":"IF(LEN(G14)=0,\"\",IF(COUNTIF(Priradené_úlohy[TERMÍN DOKONČENIA],DATE(MesRok,MesČísloMesiaca,G14))>0,\"Termín dokončenia úlohy!\",\"\"))","v":""},{"$f":"IF(LEN(H14)=0,\"\",IF(COUNTIF(Priradené_úlohy[TERMÍN DOKONČENIA],DATE(MesRok,MesČísloMesiaca,H14))>0,\"Termín dokončenia úlohy!\",\"\"))","v":""}]
[null,{"$f":"IF(LEN(H14)>0,IF(H14=DAY(DATE(MesRok,MesČísloMesiaca+1,0)),\"\",H14+1),\"\")","v":""},{"$f":"IF(LEN(B16)>0,IF(B16=DAY(DATE(MesRok,MesČísloMesiaca+1,0)),\"\",B16+1),\"\")","v":""},"","","","",""]
[null,{"$f":"IF(LEN(B16)=0,\"\",IF(COUNTIF(Priradené_úlohy[TERMÍN DOKONČENIA],DATE(MesRok,MesČísloMesiaca,B16))>0,\"Termín dokončenia úlohy!\",\"\"))","v":""},{"$f":"IF(LEN(C16)=0,\"\",IF(COUNTIF(Priradené_úlohy[TERMÍN DOKONČENIA],DATE(MesRok,MesČísloMesiaca,C16))>0,\"Termín dokončenia úlohy!\",\"\"))","v":""},{"$f":"IF(LEN(D16)=0,\"\",IF(COUNTIF(Priradené_úlohy[TERMÍN DOKONČENIA],DATE(MesRok,MesČísloMesiaca,D16))>0,\"Termín dokončenia úlohy!\",\"\"))","v":""},{"$f":"IF(LEN(E16)=0,\"\",IF(COUNTIF(Priradené_úlohy[TERMÍN DOKONČENIA],DATE(MesRok,MesČísloMesiaca,E16))>0,\"Termín dokončenia úlohy!\",\"\"))","v":""},{"$f":"IF(LEN(F16)=0,\"\",IF(COUNTIF(Priradené_úlohy[TERMÍN DOKONČENIA],DATE(MesRok,MesČísloMesiaca,F16))>0,\"Termín dokončenia úlohy!\",\"\"))","v":""},{"$f":"IF(LEN(G16)=0,\"\",IF(COUNTIF(Priradené_úlohy[TERMÍN DOKONČENIA],DATE(MesRok,MesČísloMesiaca,G16))>0,\"Termín dokončenia úlohy!\",\"\"))","v":""},{"$f":"IF(LEN(H16)=0,\"\",IF(COUNTIF(Priradené_úlohy[TERMÍN DOKONČENIA],DATE(MesRok,MesČísloMesiaca,H16))>0,\"Termín dokončenia úlohy!\",\"\"))","v":""}]

{"sheet":"Zobrazenie týždňa","index":2,"n_rows":17,"n_cols":8,"rows_kept":17,"merged":[[3,1,3,7]]}
[null,"PRIRADENÉ ÚLOHY","ZOBRAZENIE MESIACA"]
[null,"Vyberte mesiac:","Zadajte rok:","Vyberte mesiac #:"]
[null,"September",{"$f":"YEAR(TODAY())","v":2016},"Týždeň 1"]
[null," ZOBRAZENIE TÝŽDŇA"]
[null,{"$f":"IF(WEEKDAY(DATEVALUE(\"1\"&TýžMesiac&TýžRok)-1)=COLUMN(A$2),1,IF(LEN(A5)>0,A5+1,\"\"))","v":""},"","",1,2,3,4]
[null,{"$f":"IF(LEN(H5)>0,IF(H5=PoslednýDeňMesiaca_Týždeň,\"\",H5+1),\"\")","v":5},{"$f":"IF(LEN(B6)>0,IF(B6=PoslednýDeňMesiaca_Týždeň,\"\",B6+1),\"\")","v":6},7,8,9,10,11]
[null,{"$f":"IF(LEN(H6)>0,IF(H6=PoslednýDeňMesiaca_Týždeň,\"\",H6+1),\"\")","v":12},13,14,15,16,17,18]
[null,{"$f":"IF(LEN(H7)>0,IF(H7=PoslednýDeňMesiaca_Týždeň,\"\",H7+1),\"\")","v":19},20,21,22,23,24,25]
[null,{"$f":"IF(LEN(H8)>0,IF(H8=PoslednýDeňMesiaca_Týždeň,\"\",H8+1),\"\")","v":26},27,28,29,30,"",""]
[null,{"$f":"IF(LEN(H9)>0,IF(H9=PoslednýDeňMesiaca_Týždeň,\"\",H9+1),\"\")","v":""},"","","","","",""]
[null,"PONDELOK","UTOROK","STREDA","ŠTVRTOK","PIATOK","SOBOTA","NEDEĽA"]
[null,{"$f":"IF(B14=\"\",IF(AND(ISNUMBER(A12),A12<PoslednýDeňMesiaca_Týždeň),A12+1,\"\"),IF(B14<=7,\"\",INDEX(TýžZobrazenieMesiaca,TýžTýždeň,COLUMN(A$2))-7))","v":""},"","","","","",""]
[null,{"$f":"IF(LEN(B12)=0,\"\",IF(COUNTIF(Priradené_úlohy[TERMÍN DOKONČENIA],DATE(TýžRok,TýžČísloMesiaca,B12))>0,\"Termín dokončenia úlohy!\",\"\"))","v":""},{"$f":"IF(LEN(C12)=0,\"\",IF(COUNTIF(Priradené_úlohy[TERMÍN DOKONČENIA],DATE(TýžRok,TýžČísloMesiaca,C12))>0,\"Termín dokončenia úlohy!\",\"\"))","v":""},{"$f":"IF(LEN(D12)=0,\"\",IF(COUNTIF(Priradené_úlohy[TERMÍN DOKONČENIA],DATE(TýžRok,TýžČísloMesiaca,D12))>0,\"Termín dokončenia úlohy!\",\"\"))","v":""},{"$f":"IF(LEN(E12)=0,\"\",IF(COUNTIF(Priradené_úlohy[TERMÍN DOKONČENIA],DATE(TýžRok,TýžČísloMesiaca,E12))>0,\"Termín dokončenia úlohy!\",\"\"))","v":""},{"$f":"IF(LEN(F12)=0,\"\",IF(COUNTIF(Priradené_úlohy[TERMÍN DOKONČENIA],DATE(TýžRok,TýžČísloMesiaca,F12))>0,\"Termín dokončenia úlohy!\",\"\"))","v":""},{"$f":"IF(LEN(G12)=0,\"\",IF(COUNTIF(Priradené_úlohy[TERMÍN DOKONČENIA],DATE(TýžRok,TýžČísloMesiaca,G12))>0,\"Termín dokončenia úlohy!\",\"\"))","v":""},{"$f":"IF(LEN(H12)=0,\"\",IF(COUNTIF(Priradené_úlohy[TERMÍN DOKONČENIA],DATE(TýžRok,TýžČísloMesiaca,H12))>0,\"Termín dokončenia úlohy!\",\"\"))","v":""}]
[null,{"$f":"INDEX(TýžZobrazenieMesiaca,TýžTýždeň,COLUMN(A$2))","v":""},"","",1,2,3,4]
[null,{"$f":"IF(LEN(B14)=0,\"\",IF(COUNTIF(Priradené_úlohy[TERMÍN DOKONČENIA],DATE(TýžRok,TýžČísloMesiaca,B14))>0,\"Termín dokončenia úlohy!\",\"\"))","v":""},{"$f":"IF(LEN(C14)=0,\"\",IF(COUNTIF(Priradené_úlohy[TERMÍN DOKONČENIA],DATE(TýžRok,TýžČísloMesiaca,C14))>0,\"Termín dokončenia úlohy!\",\"\"))","v":""},{"$f":"IF(LEN(D14)=0,\"\",IF(COUNTIF(Priradené_úlohy[TERMÍN DOKONČENIA],DATE(TýžRok,TýžČísloMesiaca,D14))>0,\"Termín dokončenia úlohy!\",\"\"))","v":""},{"$f":"IF(LEN(E14)=0,\"\",IF(COUNTIF(Priradené_úlohy[TERMÍN DOKONČENIA],DATE(TýžRok,TýžČísloMesiaca,E14))>0,\"Termín dokončenia úlohy!\",\"\"))","v":""},{"$f":"IF(LEN(F14)=0,\"\",IF(COUNTIF(Priradené_úlohy[TERMÍN DOKONČENIA],DATE(TýžRok,TýžČísloMesiaca,F14))>0,\"Termín dokončenia úlohy!\",\"\"))","v":""},{"$f":"IF(LEN(G14)=0,\"\",IF(COUNTIF(Priradené_úlohy[TERMÍN DOKONČENIA],DATE(TýžRok,TýžČísloMesiaca,G14))>0,\"Termín dokončenia úlohy!\",\"\"))","v":""},{"$f":"IF(LEN(H14)=0,\"\",IF(COUNTIF(Priradené_úlohy[TERMÍN DOKONČENIA],DATE(TýžRok,TýžČísloMesiaca,H14))>0,\"Termín dokončenia úlohy!\",\"\"))","v":""}]
[null,{"$f":"IFERROR(IF(B14=\"\",IF(AND(ISNUMBER(A16),A16<PoslednýDeňMesiaca_Týždeň),A16+1,$H$14+COLUMN(A$2)),IF(B14+7>PoslednýDeňMesiaca_Týždeň,\"\",INDEX(TýžZobrazenieMesiaca,TýžTýždeň,COLUMN(A$2))+7)),\"\")","v":5},{"$f":"IFERROR(IF(C14=\"\",IF(AND(ISNUMBER(B16),B16<PoslednýDeňMesiaca_Týždeň),B16+1,$H$14+COLUMN(B$2)),IF(C14+7>PoslednýDeňMesiaca_Týždeň,\"\",INDEX(TýžZobrazenieMesiaca,TýžTýždeň,COLUMN(B$2))+7)),\"\")","v":6},{"$f":"IFERROR(IF(D14=\"\",IF(AND(ISNUMBER(C16),C16<PoslednýDeňMesiaca_Týždeň),C16+1,$H$14+COLUMN(C$2)),IF(D14+7>PoslednýDeňMesiaca_Týždeň,\"\",INDEX(TýžZobrazenieMesiaca,TýžTýždeň,COLUMN(C$2))+7)),\"\")","v":7},{"$f":"IFERROR(IF(E14=\"\",IF(AND(ISNUMBER(D16),D16<PoslednýDeňMesiaca_Týždeň),D16+1,$H$14+COLUMN(D$2)),IF(E14+7>PoslednýDeňMesiaca_Týždeň,\"\",INDEX(TýžZobrazenieMesiaca,TýžTýždeň,COLUMN(D$2))+7)),\"\")","v":8},{"$f":"IFERROR(IF(F14=\"\",IF(AND(ISNUMBER(E16),E16<PoslednýDeňMesiaca_Týždeň),E16+1,$H$14+COLUMN(E$2)),IF(F14+7>PoslednýDeňMesiaca_Týždeň,\"\",INDEX(TýžZobrazenieMesiaca,TýžTýždeň,COLUMN(E$2))+7)),\"\")","v":9},{"$f":"IFERROR(IF(G14=\"\",IF(AND(ISNUMBER(F16),F16<PoslednýDeňMesiaca_Týždeň),F16+1,$H$14+COLUMN(F$2)),IF(G14+7>PoslednýDeňMesiaca_Týždeň,\"\",INDEX(TýžZobrazenieMesiaca,TýžTýždeň,COLUMN(F$2))+7)),\"\")","v":10},{"$f":"IFERROR(IF(H14=\"\",IF(AND(ISNUMBER(G16),G16<PoslednýDeňMesiaca_Týždeň),G16+1,$H$14+COLUMN(G$2)),IF(H14+7>PoslednýDeňMesiaca_Týždeň,\"\",INDEX(TýžZobrazenieMesiaca,TýžTýždeň,COLUMN(G$2))+7)),\"\")","v":11}]
[null,{"$f":"IF(LEN(B16)=0,\"\",IF(COUNTIF(Priradené_úlohy[TERMÍN DOKONČENIA],DATE(TýžRok,TýžČísloMesiaca,B16))>0,\"Termín dokončenia úlohy!\",\"\"))","v":""},{"$f":"IF(LEN(C16)=0,\"\",IF(COUNTIF(Priradené_úlohy[TERMÍN DOKONČENIA],DATE(TýžRok,TýžČísloMesiaca,C16))>0,\"Termín dokončenia úlohy!\",\"\"))","v":""},{"$f":"IF(LEN(D16)=0,\"\",IF(COUNTIF(Priradené_úlohy[TERMÍN DOKONČENIA],DATE(TýžRok,TýžČísloMesiaca,D16))>0,\"Termín dokončenia úlohy!\",\"\"))","v":""},{"$f":"IF(LEN(E16)=0,\"\",IF(COUNTIF(Priradené_úlohy[TERMÍN DOKONČENIA],DATE(TýžRok,TýžČísloMesiaca,E16))>0,\"Termín dokončenia úlohy!\",\"\"))","v":""},{"$f":"IF(LEN(F16)=0,\"\",IF(COUNTIF(Priradené_úlohy[TERMÍN DOKONČENIA],DATE(TýžRok,TýžČísloMesiaca,F16))>0,\"Termín dokončenia úlohy!\",\"\"))","v":""},{"$f":"IF(LEN(G16)=0,\"\",IF(COUNTIF(Priradené_úlohy[TERMÍN DOKONČENIA],DATE(TýžRok,TýžČísloMesiaca,G16))>0,\"Termín dokončenia úlohy!\",\"\"))","v":""},{"$f":"IF(LEN(H16)=0,\"\",IF(COUNTIF(Priradené_úlohy[TERMÍN DOKONČENIA],DATE(TýžRok,TýžČísloMesiaca,H16))>0,\"Termín dokončenia úlohy!\",\"\"))","v":""}]